[Event "*** Titled Tuesday Blitz"]
[Site "Chess.com"]
[Date "2020.02.04"]
[Round "2"]
[White "MishkaFighter"]
[Black "masrahi"]
[Result "1-0"]
[WhiteElo "2431"]
[BlackElo "2100"]
[TimeControl "180+2"]
[EndTime "9:19:58 PST"]
[Termination "MishkaFighter won by checkmate"]

1. Nf3 {[%clk 0:03:01.9]} 1... Nf6 {[%clk 0:02:59.3]} 2. c4 {[%clk 0:03:03.3]}
2... g6 {[%clk 0:02:53.9]} 3. Nc3 {[%clk 0:03:02.8]} 3... Bg7 {[%clk 0:02:55.3]}
4. e4 {[%clk 0:03:01.3]} 4... d6 {[%clk 0:02:54.3]} 5. d4 {[%clk 0:03:02.1]}
5... O-O {[%clk 0:02:42.9]} 6. Be2 {[%clk 0:03:03]} 6... Na6 {[%clk 0:02:44.2]}
7. O-O {[%clk 0:03:03.9]} 7... e5 {[%clk 0:02:45.8]} 8. Be3 {[%clk 0:03:02.9]}
8... Ng4 {[%clk 0:02:45.4]} 9. Bg5 {[%clk 0:03:03.6]} 9... Qe8 {[%clk
0:02:46.5]} 10. dxe5 {[%clk 0:03:01.9]} 10... dxe5 {[%clk 0:02:46.2]} 11. h3
{[%clk 0:03:03.4]} 11... Nf6 {[%clk 0:02:34.4]} 12. Nd5 {[%clk 0:03:04.1]} 12...
Nxe4 {[%clk 0:02:25.4]} 13. Be7 {[%clk 0:03:04.6]} 13... c6 {[%clk 0:02:11]} 14.
Bxf8 {[%clk 0:03:04.9]} 14... Qxf8 {[%clk 0:02:02.7]} 15. Ne3 {[%clk 0:03:06.4]}
15... f5 {[%clk 0:01:59.6]} 16. Qc2 {[%clk 0:03:05]} 16... Be6 {[%clk
0:01:54.2]} 17. Rfd1 {[%clk 0:03:04.9]} 17... Bf7 {[%clk 0:01:31.2]} 18. a3
{[%clk 0:03:05.3]} 18... Nac5 {[%clk 0:01:32.3]} 19. b4 {[%clk 0:03:05.9]} 19...
Ne6 {[%clk 0:01:33.8]} 20. c5 {[%clk 0:03:06.9]} 20... Nf4 {[%clk 0:01:31.8]}
21. Bc4 {[%clk 0:03:07.3]} 21... Bf6 {[%clk 0:01:14.7]} 22. Rd7 {[%clk
0:03:07.8]} 22... Bxc4 {[%clk 0:01:14]} 23. Qxc4+ {[%clk 0:03:09.7]} 23... Kh8
{[%clk 0:01:14.9]} 24. Rad1 {[%clk 0:03:04.2]} 24... Qh6 {[%clk 0:00:29.1]} 25.
Rxb7 {[%clk 0:02:49.5]} 25... g5 {[%clk 0:00:14.8]} 26. Rdd7 {[%clk 0:02:49.5]}
26... g4 {[%clk 0:00:15.3]} 27. Rxh7+ {[%clk 0:02:48.3]} 27... Qxh7 {[%clk
0:00:17.2]} 28. Rxh7+ {[%clk 0:02:48.9]} 28... Kxh7 {[%clk 0:00:19.1]} 29. Qf7+
{[%clk 0:02:50.5]} 29... Kh6 {[%clk 0:00:15]} 30. Nxf5# {[%clk 0:02:51.4]} 1-0

[Event "*** Titled Tuesday Blitz"]
[Site "Chess.com"]
[Date "2020.02.04"]
[Round "2"]
[White "Chessalary"]
[Black "Majkelopulos"]
[Result "0-1"]
[WhiteElo "2161"]
[BlackElo "2468"]
[TimeControl "180+2"]
[EndTime "9:20:11 PST"]
[Termination "Majkelopulos won by resignation"]

1. e4 {[%clk 0:03:00.8]} 1... e5 {[%clk 0:03:01]} 2. Nf3 {[%clk 0:03:02]} 2...
Nc6 {[%clk 0:03:02.6]} 3. Bc4 {[%clk 0:03:03.1]} 3... Be7 {[%clk 0:03:03]} 4. d4
{[%clk 0:03:01.9]} 4... d6 {[%clk 0:03:00.2]} 5. dxe5 {[%clk 0:03:01.6]} 5...
dxe5 {[%clk 0:03:00.7]} 6. Qxd8+ {[%clk 0:02:57.8]} 6... Bxd8 {[%clk 0:03:02.6]}
7. O-O {[%clk 0:02:58.1]} 7... Nf6 {[%clk 0:03:02.5]} 8. Nc3 {[%clk 0:02:57.2]}
8... O-O {[%clk 0:02:56.2]} 9. h3 {[%clk 0:02:57.7]} 9... Nd4 {[%clk 0:02:46.6]}
10. Nxe5 {[%clk 0:02:55.4]} 10... Nxc2 {[%clk 0:02:45.1]} 11. Rb1 {[%clk
0:02:56.4]} 11... Nd7 {[%clk 0:02:42.1]} 12. Nf3 {[%clk 0:02:38.5]} 12... Nb6
{[%clk 0:02:40.9]} 13. Bb3 {[%clk 0:02:34.8]} 13... Nb4 {[%clk 0:02:40.6]} 14.
a3 {[%clk 0:02:36]} 14... Nc6 {[%clk 0:02:37.2]} 15. Nd5 {[%clk 0:02:32.5]}
15... Nxd5 {[%clk 0:02:37.1]} 16. exd5 {[%clk 0:02:34.4]} 16... Ne7 {[%clk
0:02:34.8]} 17. Bf4 {[%clk 0:02:32.7]} 17... Nf5 {[%clk 0:02:33.6]} 18. g4
{[%clk 0:02:30]} 18... Nd6 {[%clk 0:02:34.6]} 19. Bxd6 {[%clk 0:02:26.1]} 19...
cxd6 {[%clk 0:02:36.5]} 20. Nd2 {[%clk 0:02:27.4]} 20... f5 {[%clk 0:02:16.7]}
21. f3 {[%clk 0:02:24.3]} 21... b5 {[%clk 0:02:13.3]} 22. Rbc1 {[%clk
0:02:16.9]} 22... Bd7 {[%clk 0:02:10.2]} 23. Kg2 {[%clk 0:01:59.9]} 23... Bg5
{[%clk 0:02:10.3]} 24. f4 {[%clk 0:01:57.5]} 24... Bf6 {[%clk 0:02:09.5]} 25.
Rc7 {[%clk 0:01:48.8]} 25... Rf7 {[%clk 0:02:10.6]} 26. Bc2 {[%clk 0:01:18.1]}
26... Bxb2 {[%clk 0:02:00.3]} 27. gxf5 {[%clk 0:01:10.6]} 27... Bxa3 {[%clk
0:02:00.3]} 28. f6 {[%clk 0:00:56.7]} 28... Bxh3+ {[%clk 0:01:59.3]} 0-1

[Event "*** Titled Tuesday Blitz"]
[Site "Chess.com"]
[Date "2020.02.04"]
[Round "2"]
[White "DevikBronstein"]
[Black "Manukyan_Artak"]
[Result "1-0"]
[WhiteElo "2726"]
[BlackElo "2337"]
[TimeControl "180+2"]
[EndTime "9:20:29 PST"]
[Termination "DevikBronstein won by resignation"]

1. e4 {[%clk 0:03:01.9]} 1... c6 {[%clk 0:03:00.4]} 2. d4 {[%clk 0:03:02.1]}
2... d5 {[%clk 0:03:02.3]} 3. e5 {[%clk 0:03:03.1]} 3... Bf5 {[%clk 0:03:02.9]}
4. Nf3 {[%clk 0:03:04.4]} 4... e6 {[%clk 0:03:03.7]} 5. Be2 {[%clk 0:03:05.7]}
5... h6 {[%clk 0:03:04]} 6. O-O {[%clk 0:03:06.5]} 6... Nd7 {[%clk 0:03:05.2]}
7. Nbd2 {[%clk 0:03:07.9]} 7... Ne7 {[%clk 0:03:04.7]} 8. Nb3 {[%clk 0:03:09.1]}
8... Nc8 {[%clk 0:03:03.9]} 9. a4 {[%clk 0:03:09.9]} 9... a5 {[%clk 0:03:04]}
10. Bd2 {[%clk 0:03:05]} 10... Be7 {[%clk 0:03:03.6]} 11. c4 {[%clk 0:03:00.2]}
11... dxc4 {[%clk 0:03:00.5]} 12. Bxc4 {[%clk 0:03:02.1]} 12... Ncb6 {[%clk
0:02:53.6]} 13. Bxa5 {[%clk 0:03:00.8]} 13... Qc8 {[%clk 0:02:48.5]} 14. Bd3
{[%clk 0:02:58.7]} 14... Bxd3 {[%clk 0:02:39.3]} 15. Qxd3 {[%clk 0:03:00.6]}
15... Nd5 {[%clk 0:02:39.8]} 16. Bd2 {[%clk 0:02:58.8]} 16... O-O {[%clk
0:02:40.2]} 17. Qe4 {[%clk 0:02:54.5]} 17... Ra6 {[%clk 0:02:34.3]} 18. Qg4
{[%clk 0:02:53.5]} 18... Kh7 {[%clk 0:02:34.4]} 19. Rfe1 {[%clk 0:02:53.8]}
19... Qa8 {[%clk 0:02:34.3]} 20. a5 {[%clk 0:02:54.4]} 20... c5 {[%clk
0:02:27.6]} 21. dxc5 {[%clk 0:02:50.3]} 21... Nxc5 {[%clk 0:02:28.7]} 22. Nxc5
{[%clk 0:02:48.7]} 22... Bxc5 {[%clk 0:02:30.6]} 23. Qh5 {[%clk 0:02:48.9]}
23... b6 {[%clk 0:02:25.5]} 24. Ng5+ {[%clk 0:02:37.5]} 24... Kg8 {[%clk
0:02:25.8]} 25. Ne4 {[%clk 0:02:39.1]} 25... Be7 {[%clk 0:02:18.8]} 26. Rad1
{[%clk 0:01:57]} 26... bxa5 {[%clk 0:02:09.9]} 27. Bxh6 {[%clk 0:01:57.9]} 27...
gxh6 {[%clk 0:02:05.7]} 28. Qxh6 {[%clk 0:01:59]} 28... Rd8 {[%clk 0:01:01.8]}
29. Rd3 {[%clk 0:01:52.7]} 29... Nf4 {[%clk 0:00:58.7]} 30. Rg3+ {[%clk
0:01:53.3]} 30... Ng6 {[%clk 0:00:59.1]} 31. Nf6+ {[%clk 0:01:54.4]} 31... Bxf6
{[%clk 0:00:55.2]} 32. exf6 {[%clk 0:01:56.3]} 1-0

[Event "*** Titled Tuesday Blitz"]
[Site "Chess.com"]
[Date "2020.02.04"]
[Round "2"]
[White "MikeSailer"]
[Black "GMMatamoros"]
[Result "0-1"]
[WhiteElo "2081"]
[BlackElo "2424"]
[TimeControl "180+2"]
[EndTime "9:20:31 PST"]
[Termination "GMMatamoros won by checkmate"]

1. Nf3 {[%clk 0:03:01.9]} 1... Nf6 {[%clk 0:03:00.7]} 2. b4 {[%clk 0:03:02.4]}
2... g6 {[%clk 0:03:01.6]} 3. Bb2 {[%clk 0:03:03.5]} 3... Bg7 {[%clk 0:03:03.2]}
4. c4 {[%clk 0:03:04.7]} 4... O-O {[%clk 0:03:04.5]} 5. e3 {[%clk 0:03:05.9]}
5... d6 {[%clk 0:03:06]} 6. Be2 {[%clk 0:03:07.3]} 6... e5 {[%clk 0:03:07]} 7.
O-O {[%clk 0:03:08.7]} 7... Nbd7 {[%clk 0:03:07.9]} 8. d4 {[%clk 0:03:09.9]}
8... e4 {[%clk 0:03:04.4]} 9. Nfd2 {[%clk 0:03:10.8]} 9... Re8 {[%clk
0:03:05.9]} 10. Nc3 {[%clk 0:03:11.9]} 10... Nf8 {[%clk 0:03:05.9]} 11. Qc2
{[%clk 0:03:06.6]} 11... Bf5 {[%clk 0:03:06.1]} 12. a4 {[%clk 0:03:07.2]} 12...
h5 {[%clk 0:03:06.5]} 13. a5 {[%clk 0:03:07.2]} 13... N8h7 {[%clk 0:03:07.1]}
14. b5 {[%clk 0:03:00.3]} 14... Ng4 {[%clk 0:02:51.2]} 15. Nd5 {[%clk 0:02:38]}
15... Qh4 {[%clk 0:02:27.1]} 16. Bxg4 {[%clk 0:02:19.2]} 16... hxg4 {[%clk
0:02:27.9]} 17. g3 {[%clk 0:01:40.5]} 17... Qh6 {[%clk 0:02:22.7]} 18. Nxc7
{[%clk 0:01:28.7]} 18... Ng5 {[%clk 0:02:23.5]} 19. Nxe8 {[%clk 0:01:12.4]}
19... Qh3 {[%clk 0:02:01.5]} 20. f4 {[%clk 0:00:30.1]} 20... exf3 {[%clk
0:02:01.8]} 21. Ne4 {[%clk 0:00:28.7]} 21... Bxe4 {[%clk 0:01:56.8]} 22. Qf2
{[%clk 0:00:28.6]} 22... Rxe8 {[%clk 0:01:57.7]} 23. d5 {[%clk 0:00:18.8]} 23...
Qg2+ {[%clk 0:01:41]} 24. Qxg2 {[%clk 0:00:19.3]} 24... fxg2 {[%clk 0:01:42.9]}
25. Rf2 {[%clk 0:00:18.8]} 25... Nh3# {[%clk 0:01:43.8]} 0-1

[Event "*** Titled Tuesday Blitz"]
[Site "Chess.com"]
[Date "2020.02.04"]
[Round "2"]
[White "IAgrest"]
[Black "NiranjanNavalgund"]
[Result "0-1"]
[WhiteElo "1772"]
[BlackElo "2390"]
[TimeControl "180+2"]
[EndTime "9:20:40 PST"]
[Termination "NiranjanNavalgund won on time"]

1. e4 {[%clk 0:03:01.9]} 1... e5 {[%clk 0:02:59.3]} 2. Nf3 {[%clk 0:03:02.4]}
2... Nc6 {[%clk 0:03:00.6]} 3. Bb5 {[%clk 0:03:03.1]} 3... g6 {[%clk 0:02:59]}
4. c3 {[%clk 0:02:59.6]} 4... a6 {[%clk 0:02:58.7]} 5. Ba4 {[%clk 0:02:58.6]}
5... Bg7 {[%clk 0:02:58.9]} 6. O-O {[%clk 0:02:58.6]} 6... d6 {[%clk 0:02:53.4]}
7. d4 {[%clk 0:02:56.4]} 7... Bd7 {[%clk 0:02:53]} 8. Re1 {[%clk 0:02:52.7]}
8... Nf6 {[%clk 0:02:46.7]} 9. Nbd2 {[%clk 0:02:29.3]} 9... b5 {[%clk
0:02:41.9]} 10. Bb3 {[%clk 0:02:16.4]} 10... O-O {[%clk 0:02:43]} 11. Nf1 {[%clk
0:02:15.2]} 11... Qb8 {[%clk 0:02:38]} 12. h3 {[%clk 0:02:02.6]} 12... h6 {[%clk
0:02:35.4]} 13. Ng3 {[%clk 0:01:49]} 13... Kh7 {[%clk 0:02:36.1]} 14. Be3 {[%clk
0:01:25.5]} 14... Qe8 {[%clk 0:02:25.3]} 15. dxe5 {[%clk 0:01:00.9]} 15... Nxe5
{[%clk 0:02:23.5]} 16. Nxe5 {[%clk 0:00:59.2]} 16... dxe5 {[%clk 0:02:25.4]} 17.
Bc5 {[%clk 0:00:58.3]} 17... Rh8 {[%clk 0:02:25.3]} 18. Qe2 {[%clk 0:00:49.6]}
18... Be6 {[%clk 0:02:21.9]} 19. Rad1 {[%clk 0:00:46.5]} 19... Qc6 {[%clk
0:02:21.6]} 20. Qe3 {[%clk 0:00:23.9]} 20... Rhd8 {[%clk 0:02:17.6]} 21. Ba3
{[%clk 0:00:10.5]} 21... h5 {[%clk 0:02:16.8]} 22. Qe2 {[%clk 0:00:10.2]} 22...
h4 {[%clk 0:02:14.8]} 23. Nf1 {[%clk 0:00:10.7]} 23... Rxd1 {[%clk 0:02:14.3]}
24. Bxd1 {[%clk 0:00:10.1]} 24... Bxa2 {[%clk 0:02:13.7]} 25. b3 {[%clk
0:00:10.2]} 25... Qxc3 {[%clk 0:02:06.8]} 0-1

[Event "*** Titled Tuesday Blitz"]
[Site "Chess.com"]
[Date "2020.02.04"]
[Round "2"]
[White "DanielNaroditsky"]
[Black "Elshan1985"]
[Result "1-0"]
[WhiteElo "3132"]
[BlackElo "2689"]
[TimeControl "180+2"]
[EndTime "9:21:25 PST"]
[Termination "DanielNaroditsky won by resignation"]

1. b3 {[%clk 0:03:01.9]} 1... Nf6 {[%clk 0:02:59.1]} 2. Bb2 {[%clk 0:03:03.3]}
2... g6 {[%clk 0:03:00.8]} 3. Nf3 {[%clk 0:03:04.7]} 3... Bg7 {[%clk 0:03:02]}
4. g3 {[%clk 0:03:06.6]} 4... d6 {[%clk 0:03:02.6]} 5. d4 {[%clk 0:03:07.7]}
5... a5 {[%clk 0:03:02.8]} 6. a3 {[%clk 0:03:06.1]} 6... O-O {[%clk 0:03:03.1]}
7. Bg2 {[%clk 0:03:07.1]} 7... Nc6 {[%clk 0:03:03.2]} 8. d5 {[%clk 0:03:06.7]}
8... Nb8 {[%clk 0:02:57.9]} 9. c4 {[%clk 0:03:07.3]} 9... e5 {[%clk 0:02:56.8]}
10. dxe6 {[%clk 0:03:08]} 10... fxe6 {[%clk 0:02:57.8]} 11. O-O {[%clk
0:03:09.9]} 11... Nbd7 {[%clk 0:02:56.2]} 12. Nc3 {[%clk 0:03:11.3]} 12... Nc5
{[%clk 0:02:50.4]} 13. b4 {[%clk 0:03:05.5]} 13... axb4 {[%clk 0:02:50.4]} 14.
axb4 {[%clk 0:03:07.4]} 14... Rxa1 {[%clk 0:02:51.3]} 15. Bxa1 {[%clk
0:03:05.7]} 15... Na6 {[%clk 0:02:49.2]} 16. Qb3 {[%clk 0:03:07]} 16... Qe7
{[%clk 0:02:37.3]} 17. Bb2 {[%clk 0:02:58.6]} 17... Nd7 {[%clk 0:02:23]} 18. Rd1
{[%clk 0:02:47.7]} 18... Ne5 {[%clk 0:02:19.7]} 19. Nxe5 {[%clk 0:02:41.8]}
19... Bxe5 {[%clk 0:02:20.2]} 20. Ne4 {[%clk 0:02:37.7]} 20... Bxb2 {[%clk
0:02:11.3]} 21. Qxb2 {[%clk 0:02:39.6]} 21... e5 {[%clk 0:02:12.6]} 22. b5
{[%clk 0:02:20.4]} 22... Nb8 {[%clk 0:02:08]} 23. b6 {[%clk 0:02:12.7]} 23...
Rd8 {[%clk 0:01:43.3]} 24. c5 {[%clk 0:01:38.7]} 24... dxc5 {[%clk 0:01:14.5]}
25. Rxd8+ {[%clk 0:01:36]} 25... Qxd8 {[%clk 0:01:15.7]} 26. Qxe5 {[%clk
0:01:37.9]} 26... Nc6 {[%clk 0:01:14.6]} 27. Nf6+ {[%clk 0:01:02.9]} 27... Kh8
{[%clk 0:00:30.2]} 28. Bxc6 {[%clk 0:01:00.8]} 1-0

[Event "*** Titled Tuesday Blitz"]
[Site "Chess.com"]
[Date "2020.02.04"]
[Round "2"]
[White "karinachess1"]
[Black "secretsuperstar7"]
[Result "1-0"]
[WhiteElo "2510"]
[BlackElo "2240"]
[TimeControl "180+2"]
[EndTime "9:21:37 PST"]
[Termination "karinachess1 won by resignation"]

1. Nf3 {[%clk 0:03:01.9]} 1... d5 {[%clk 0:02:54.6]} 2. c4 {[%clk 0:03:01.7]}
2... d4 {[%clk 0:02:48.7]} 3. e3 {[%clk 0:03:02.5]} 3... c5 {[%clk 0:02:48]} 4.
b4 {[%clk 0:02:59.9]} 4... Nc6 {[%clk 0:02:16.4]} 5. b5 {[%clk 0:02:55.3]} 5...
Nb8 {[%clk 0:02:04.1]} 6. Bb2 {[%clk 0:02:40.6]} 6... e5 {[%clk 0:02:04.4]} 7.
Nxe5 {[%clk 0:02:32.2]} 7... Bd6 {[%clk 0:02:01.1]} 8. Nf3 {[%clk 0:02:28.2]}
8... Nf6 {[%clk 0:02:01]} 9. Be2 {[%clk 0:02:25.3]} 9... dxe3 {[%clk 0:01:51.8]}
10. dxe3 {[%clk 0:02:20.7]} 10... O-O {[%clk 0:01:52]} 11. O-O {[%clk
0:02:20.2]} 11... Bg4 {[%clk 0:01:45.9]} 12. Nbd2 {[%clk 0:02:20.3]} 12... Nbd7
{[%clk 0:01:44.6]} 13. Qc2 {[%clk 0:02:14.3]} 13... h6 {[%clk 0:01:36.7]} 14.
Rad1 {[%clk 0:02:13.4]} 14... Qc7 {[%clk 0:01:35.6]} 15. h3 {[%clk 0:02:11.4]}
15... Bh5 {[%clk 0:01:34.3]} 16. Ne4 {[%clk 0:02:08.2]} 16... Nxe4 {[%clk
0:01:25.9]} 17. Qxe4 {[%clk 0:02:08.7]} 17... Rae8 {[%clk 0:01:24.4]} 18. Qd5
{[%clk 0:02:06.6]} 18... Bxf3 {[%clk 0:01:20.9]} 19. Bxf3 {[%clk 0:02:05]} 19...
Re6 {[%clk 0:00:57.1]} 20. Qxb7 {[%clk 0:01:57]} 20... Ne5 {[%clk 0:00:53]} 21.
Bxe5 {[%clk 0:01:51.1]} 21... Bxe5 {[%clk 0:00:52.8]} 22. Qxc7 {[%clk
0:01:43.8]} 22... Bxc7 {[%clk 0:00:54.7]} 23. Rd7 {[%clk 0:01:45.2]} 23... Bb6
{[%clk 0:00:54.5]} 24. Rfd1 {[%clk 0:01:45.2]} 24... g5 {[%clk 0:00:31]} 25. a4
{[%clk 0:01:39]} 25... Kg7 {[%clk 0:00:25.7]} 26. Rb7 {[%clk 0:01:37.7]} 26...
Kg6 {[%clk 0:00:26.4]} 27. Rdd7 {[%clk 0:01:35.9]} 27... h5 {[%clk 0:00:21.8]}
28. Bd5 {[%clk 0:01:31.8]} 28... Rf6 {[%clk 0:00:20.3]} 29. g4 {[%clk
0:01:31.7]} 29... hxg4 {[%clk 0:00:13.5]} 30. hxg4 {[%clk 0:01:33.6]} 30... Ba5
{[%clk 0:00:11.8]} 31. Rxa7 {[%clk 0:01:28.6]} 31... Be1 {[%clk 0:00:12.4]} 32.
f3 {[%clk 0:01:28.2]} 32... Bd2 {[%clk 0:00:11.8]} 33. Be4+ {[%clk 0:01:26.9]}
33... Kh6 {[%clk 0:00:11.2]} 34. Rxd2 {[%clk 0:01:27.4]} 1-0

[Event "*** Titled Tuesday Blitz"]
[Site "Chess.com"]
[Date "2020.02.04"]
[Round "2"]
[White "norwaytoadog"]
[Black "Bryakin_Mikhail"]
[Result "0-1"]
[WhiteElo "2315"]
[BlackElo "2733"]
[TimeControl "180+2"]
[EndTime "9:21:51 PST"]
[Termination "Bryakin_Mikhail won by resignation"]

1. e4 {[%clk 0:03:01.9]} 1... c6 {[%clk 0:02:59.7]} 2. d4 {[%clk 0:03:02.6]}
2... d5 {[%clk 0:03:01.2]} 3. e5 {[%clk 0:03:04]} 3... Bf5 {[%clk 0:03:02]} 4.
Nf3 {[%clk 0:03:04.8]} 4... e6 {[%clk 0:03:01.1]} 5. Be2 {[%clk 0:03:05.8]} 5...
Nd7 {[%clk 0:03:00.9]} 6. O-O {[%clk 0:03:06]} 6... Bg6 {[%clk 0:03:02.3]} 7.
Nbd2 {[%clk 0:03:05.4]} 7... Nh6 {[%clk 0:03:03.4]} 8. Nb3 {[%clk 0:03:06]} 8...
Nf5 {[%clk 0:03:05]} 9. a4 {[%clk 0:02:59.6]} 9... h5 {[%clk 0:03:06.4]} 10. Bd2
{[%clk 0:02:57.7]} 10... Be7 {[%clk 0:03:07.3]} 11. a5 {[%clk 0:02:58.4]} 11...
h4 {[%clk 0:03:08.6]} 12. h3 {[%clk 0:02:58.5]} 12... Rc8 {[%clk 0:03:09.2]} 13.
Ne1 {[%clk 0:02:55.4]} 13... c5 {[%clk 0:03:09.3]} 14. a6 {[%clk 0:02:44.9]}
14... b6 {[%clk 0:03:06.9]} 15. Bb5 {[%clk 0:02:42.8]} 15... c4 {[%clk
0:02:58.5]} 16. Nc1 {[%clk 0:02:40.6]} 16... Nxd4 {[%clk 0:02:57.9]} 17. Bxd7+
{[%clk 0:02:29]} 17... Qxd7 {[%clk 0:02:59.8]} 18. Bf4 {[%clk 0:02:18.2]} 18...
Nc6 {[%clk 0:02:53.2]} 19. Nf3 {[%clk 0:02:08.8]} 19... f6 {[%clk 0:02:40.9]}
20. Ne2 {[%clk 0:01:55.2]} 20... Kf7 {[%clk 0:02:36.9]} 21. Re1 {[%clk
0:01:54.1]} 21... Bc5 {[%clk 0:02:35.4]} 22. Ned4 {[%clk 0:01:48.6]} 22... Nxd4
{[%clk 0:02:35.5]} 23. Nxd4 {[%clk 0:01:49]} 23... Rce8 {[%clk 0:02:36.6]} 24.
c3 {[%clk 0:01:45.7]} 24... Bd3 {[%clk 0:02:35.6]} 25. exf6 {[%clk 0:01:34.4]}
25... gxf6 {[%clk 0:02:33.1]} 26. Qg4 {[%clk 0:01:34.6]} 26... Bxd4 {[%clk
0:02:19.7]} 27. cxd4 {[%clk 0:01:32.7]} 27... Reg8 {[%clk 0:02:20.8]} 28. Qf3
{[%clk 0:01:25.6]} 28... Be4 {[%clk 0:02:20.4]} 29. Rxe4 {[%clk 0:01:26.8]}
29... dxe4 {[%clk 0:02:22.3]} 30. Qxe4 {[%clk 0:01:28.1]} 30... Qd5 {[%clk
0:02:23.5]} 31. f3 {[%clk 0:01:16.2]} 31... Qxe4 {[%clk 0:02:20.6]} 32. fxe4
{[%clk 0:01:17.4]} 32... Rh5 {[%clk 0:02:22.2]} 33. Bc7 {[%clk 0:01:00.2]} 33...
Rc8 {[%clk 0:02:19.1]} 34. Bd6 {[%clk 0:00:55.8]} 34... Rb5 {[%clk 0:02:18.8]}
35. Ba3 {[%clk 0:00:50.4]} 35... Ra5 {[%clk 0:02:18.8]} 36. d5 {[%clk
0:00:49.3]} 36... Rxa6 {[%clk 0:02:18.6]} 37. Rd1 {[%clk 0:00:40.5]} 37... b5
{[%clk 0:02:18.6]} 38. Bb4 {[%clk 0:00:38.7]} 38... Ra4 {[%clk 0:02:17.7]} 39.
Bc3 {[%clk 0:00:31.1]} 39... b4 {[%clk 0:02:17]} 40. Be1 {[%clk 0:00:29.3]}
40... c3 {[%clk 0:02:17.9]} 41. bxc3 {[%clk 0:00:25.4]} 41... bxc3 {[%clk
0:02:19.8]} 42. dxe6+ {[%clk 0:00:26]} 42... Kxe6 {[%clk 0:02:21.7]} 43. Bxh4
{[%clk 0:00:20.9]} 43... c2 {[%clk 0:02:23]} 44. Rc1 {[%clk 0:00:21.5]} 44...
Rxe4 {[%clk 0:02:24.3]} 45. Bf2 {[%clk 0:00:19.9]} 45... a5 {[%clk 0:02:24.7]}
46. h4 {[%clk 0:00:20.3]} 46... Rb4 {[%clk 0:02:24.9]} 47. h5 {[%clk 0:00:19.6]}
47... Rb1 {[%clk 0:02:26.4]} 48. Be3 {[%clk 0:00:20.9]} 48... Rxc1+ {[%clk
0:02:26.4]} 49. Bxc1 {[%clk 0:00:21.8]} 49... Rb8 {[%clk 0:02:28]} 50. h6 {[%clk
0:00:20.8]} 50... Kf7 {[%clk 0:02:29.5]} 0-1

[Event "*** Titled Tuesday Blitz"]
[Site "Chess.com"]
[Date "2020.02.04"]
[Round "2"]
[White "NewBornNow"]
[Black "wonderfultime"]
[Result "0-1"]
[WhiteElo "2664"]
[BlackElo "2976"]
[TimeControl "180+2"]
[EndTime "9:22:12 PST"]
[Termination "wonderfultime won by resignation"]

1. e4 {[%clk 0:03:01.9]} 1... c5 {[%clk 0:02:51.3]} 2. Nf3 {[%clk 0:03:02.5]}
2... Nf6 {[%clk 0:02:52.8]} 3. e5 {[%clk 0:03:02.9]} 3... Nd5 {[%clk 0:02:54]}
4. Nc3 {[%clk 0:03:04.4]} 4... e6 {[%clk 0:02:55.6]} 5. Nxd5 {[%clk 0:03:03.3]}
5... exd5 {[%clk 0:02:57.5]} 6. d4 {[%clk 0:03:04.6]} 6... Nc6 {[%clk
0:02:58.7]} 7. dxc5 {[%clk 0:03:05.4]} 7... Bxc5 {[%clk 0:03:00.6]} 8. Bd3
{[%clk 0:03:06.5]} 8... d6 {[%clk 0:03:02]} 9. exd6 {[%clk 0:03:06.8]} 9... Qxd6
{[%clk 0:03:03.3]} 10. O-O {[%clk 0:03:07.4]} 10... O-O {[%clk 0:03:04.7]} 11.
h3 {[%clk 0:03:07.5]} 11... Re8 {[%clk 0:03:05.1]} 12. Bg5 {[%clk 0:03:06.8]}
12... h6 {[%clk 0:02:57.2]} 13. Bh4 {[%clk 0:02:58.9]} 13... g5 {[%clk
0:02:23.3]} 14. Nxg5 {[%clk 0:02:59.4]} 14... hxg5 {[%clk 0:02:23.1]} 15. Bxg5
{[%clk 0:02:54.3]} 15... Nb4 {[%clk 0:01:49.3]} 16. Bb5 {[%clk 0:02:48.7]} 16...
Re4 {[%clk 0:01:01.1]} 17. c3 {[%clk 0:02:41.9]} 17... Bxh3 {[%clk 0:00:52]} 18.
cxb4 {[%clk 0:02:29.9]} 18... Rg4 {[%clk 0:00:46.1]} 19. Qxg4 {[%clk 0:02:23.6]}
19... Bxg4 {[%clk 0:00:48]} 20. bxc5 {[%clk 0:02:23.8]} 20... Qxc5 {[%clk
0:00:41.7]} 21. Ba4 {[%clk 0:02:21.6]} 21... d4 {[%clk 0:00:38.6]} 22. Bf4
{[%clk 0:02:19.5]} 22... Rd8 {[%clk 0:00:36.4]} 23. f3 {[%clk 0:02:13.6]} 23...
d3+ {[%clk 0:00:33.9]} 24. Kh2 {[%clk 0:02:14.5]} 24... Bf5 {[%clk 0:00:22.2]}
25. Bb3 {[%clk 0:02:10.8]} 25... Qd4 {[%clk 0:00:21]} 26. Kg3 {[%clk 0:01:56.2]}
26... Qg7+ {[%clk 0:00:19.1]} 27. Kh2 {[%clk 0:01:54.6]} 27... d2 {[%clk
0:00:21]} 28. Rad1 {[%clk 0:01:53.6]} 28... Qxb2 {[%clk 0:00:20.2]} 29. Rf2
{[%clk 0:01:50.6]} 29... Qd4 {[%clk 0:00:21.2]} 30. Kg3 {[%clk 0:01:50]} 30...
Qg7+ {[%clk 0:00:20]} 31. Kh2 {[%clk 0:01:50.9]} 31... Qh7+ {[%clk 0:00:14.4]}
32. Kg1 {[%clk 0:01:46.2]} 32... Bc2 {[%clk 0:00:14.8]} 33. Bxc2 {[%clk
0:01:39.3]} 33... Qxc2 {[%clk 0:00:15.2]} 34. Rdxd2 {[%clk 0:01:40.4]} 34...
Rxd2 {[%clk 0:00:15]} 35. Rxd2 {[%clk 0:01:41.3]} 35... Qc1+ {[%clk 0:00:16.3]}
36. Kf2 {[%clk 0:01:41]} 36... Qc4 {[%clk 0:00:18.2]} 37. Be3 {[%clk 0:01:41.1]}
37... b6 {[%clk 0:00:18.8]} 38. g4 {[%clk 0:01:41.2]} 38... Qb4 {[%clk
0:00:18.2]} 39. Kg3 {[%clk 0:01:40.7]} 39... Qc3 {[%clk 0:00:17.9]} 40. Rd8+
{[%clk 0:01:38.9]} 40... Kh7 {[%clk 0:00:19.3]} 41. Bd4 {[%clk 0:01:38.6]} 41...
Qc7+ {[%clk 0:00:20.4]} 42. f4 {[%clk 0:01:37.9]} 42... Qxd8 {[%clk 0:00:21.7]}
0-1